{"text_format":"1","workbook":"xlsx","n_sheets":9,"sheets":["Для власних потреб","Для Виплат","Для фінансового старту","Для інвестицій "," Приватний у металі","Ескроу","Пакетна пропозиція","Додаток","__SETTINGS__"],"not_rendered":{"charts":0,"images":11,"macros":1,"external_links":0,"defined_names":8,"comments":1,"pivot_tables":0},"unopened":[],"bounds":{"document_bytes":16777216,"sheet_cells":100000,"rows_first":2000,"rows_last":500,"rows_between":2000,"halvings":0,"cell_chars":16384,"cell_head_chars":4096},"cells_cut":0,"cells_raw":0,"read":"whole","date_system":"1900"}

{"sheet":"Для власних потреб","index":0,"n_rows":44,"n_cols":5,"rows_kept":44,"cut":false,"hidden":false,"merged":[[25,2,25,4],[6,2,6,4],[0,3,0,4],[1,0,1,4],[2,1,2,4],[3,1,3,4],[4,1,4,4],[22,2,22,4],[9,2,9,4],[11,2,11,4],[16,2,16,4],[20,2,20,4],[21,2,21,4]]}
[null,null,null,"\"ЗАТВЕРДЖЕНО\"\nрішенням Продуктово-тарифного комітету \n(протокол №73 від 29.10.2025 року)\nВступають в дію з 05.11.2025 року"]
["Тарифи на банківськи послуги Акціонерного банку \"Південний\""]
[2," ФІЗИЧНІ ОСОБИ"]
["2.1","ВЕДЕННЯ ПОТОЧНИХ РАХУНКІВ ФІЗИЧНИХ ОСІБ У НАЦІОНАЛЬНІЙ, ІНОЗЕМНИХ ВАЛЮТАХ ТА У БАНКІВСЬКИХ МЕТАЛАХ"]
["2.1.1","Тарифний план \"Для власних потреб\""]
[null,"Операція/послуга","Гривня","Долари США, Євро","Англійський фунт стерлінгів, Швейцарський франк, Польський злотий"]
["2.1.1.1","Обслуговування рахунків:"]
["2.1.1.1.1","Відкриття поточного рахунку","не тарифікується \n(рекомендовано відкриття для цільових надходжень: дивіденди, заробітна плата, купівля-продаж, купівля-продаж корпоративних прав, поворотня/безповоротня фінансова допомога, дарування, спадщина, страхові виплати та ін.","не тарифікується \n(рекомендовано відкриття для цільових надходжень: дивіденди, заробітна плата, купівля-продаж, купівля-продаж корпоративних прав, поворотня/безповоротня фінансова допомога, дарування, спадщина, страхові виплати та ін.","відкриття нових рахунків з 01.02.2023р.- не передбачено"]
["2.1.1.1.2","Закриття поточного рахунку","Не тарифікується","Не тарифікується","Не тарифікується"]
["2.1.1.1.3","Плата за обслуговування неактивного рахунку\n(«Неактивний рахунок» - рахунок, по якому не було оборотів на протязі останніх 6 місяців, за виключенням внутрішньобанківських операцій по нарахуванню % та списанню комісії)","50 грн на місяць, але не більше залишку на рахунку"]
["2.1.1.1.4","Річна відсоткова ставка, що нараховується щомісяця на щоденні фактичні залишки грошових коштів на рахунку (згідно рішення КУАП)",0,0,0]
["2.1.1.2","Готівкове поповнення рахунків:"]
["2.1.1.2.1","власником рахунку (у т.ч. за  довіреністю) ","Не тарифікується","Не тарифікується","Не передбачено"]
["2.1.1.2.2","іншою особою","0,5% від суми min 25 грн., max 1000 грн.","Не тарифікується","Не передбачено"]
["2.1.1.3","Безготівкове зарахування коштів на рахунки","Не тарифікується","Не тарифікується","Не тарифікується"]
["2.1.1.4","Видача готівкових коштів з рахунків:","1% від суми","1% від суми (у гривні за курсом НБУ)","Не передбачено"]
["2.1.1.5","Додаткова плата за термінове отримання готівкових коштів у відділеннях Акціонерного банку «Південний» (без оформлення заявки)"]
["2.1.1.5.1","до 100 000,00 грн. (або еквівалент в іноземній валюті за курсом НБУ) у день ","Не тарифікується","Не тарифікується","Не передбачено"]
["2.1.1.5.2","від 100 000,01 грн. до 7 500 000,00 грн. (або еквівалент в іноземній валюті за курсом НБУ) у день","1,8% від суми","1,8% від суми (у гривні за курсом НБУ)","Не передбачено"]
["2.1.1.5.3","від 7 500 000,01 грн. (або еквівалент в іноземній валюті за курсом НБУ) у день","1% від суми","1% від суми (у гривні за курсом НБУ)","Не передбачено"]
["2.1.1.6","Безготівкові перекази з рахунків:"]
["2.1.1.6.1","у системі дистанційного обслуговування \"ПІВДЕННИЙ MYBANK\" ","згідно з Додатком №3 до Тарифів"]
["2.1.1.6.2","у Мобільному застосунку \"Pivdenny Online\""," згідно з Додатком №6 до Тарифів"]
["2.1.1.6.3","через сервіс \"Open Banking\" "," згідно з Додатком №7 до Тарифів"]
["2.1.1.6.4","у  відділені Банку:"]
["2.1.1.6.4.1","в межах Банку"]
["2.1.1.6.4.1.1","на власні рахунки (за виключенням рахунків, відкритих як фізичній особі-підприємцю)","Не тарифікується","Не тарифікується","Не тарифікується"]
["2.1.1.6.4.1.2","на рахунки інших отримувачів","0,5% від суми переказу min 25 грн., max 1500 грн."," 0,5% від суми переказу min 5 USD/EUR, max 50 USD/EUR (у грн. за курсом НБУ)","0,5% від суми переказу min еквівалент 5 USD, max еквівалент 50 USD (у грн. за курсом НБУ)"]
["2.1.1.6.4.1.3","на внутрішньобанківські рахунки ","Не тарифікується","Не тарифікується","Не тарифікується"]
["2.1.1.6.4.1.4","на рахунки забудовників для інвестування в будівництво на первинному ринку","0,5% від суми переказу min 25 грн., max 750 грн.","х","х"]
["2.1.1.6.4.2","В інші банки за межами України","Не передбачено","0,75% від суми переказу min 30 USD/EUR  max 500 USD/EUR (у грн. за курсом НБУ)","0,75% від суми переказу min еквівалент 30 USD  max еквівалент 500 USD (у грн. за курсом НБУ) "]
["2.1.1.6.4.3","В інші банки по території України","1% від суми, min 25,00 грн.","1% від суми переказу min 30 USD/EUR  (у грн. за курсом НБУ) ","1% від суми переказу min еквівалент 30 USD  (у грн. за курсом НБУ) "]
["2.1.1.6.4.3.1","на рахунки забудовників для інвестування в будівництво на первинному ринку","0,5% від суми переказу min 25 грн., max 1000 грн.","х","х"]
["2.1.1.6.4.4","на рахунки клієнтів  АТ \"Регіональний інвестиційний банк\"","Не передбачено","25 USD/EUR (у грн. за курсом НБУ) ","25 USD (еквівалент) + 0,5% від суми переказу ( у гривнях за курсом НБУ) "]
["2.1.1.6.4.5","з метою оплати навчання, лікування","0,5% від суми переказу min 25 грн.","0,5% від суми переказу, min 25 USD/EUR max 500 USD/EUR (у грн. за курсом НБУ) ","0,5% від суми переказу, min еквівалент 25 USD max еквівалент 500 USD (у грн. за курсом НБУ)"]
["2.1.1.6.4.6","За системами грошових переказі, якими це передбачено","Згідно тарифів систем грошових переказів","Згідно тарифів систем грошових переказів","Не передбачено"]
["2.1.1.6.4.7","на рахунки Міністерства оборони України, Державної прикордонної служби України, їх підрозділів та частин з метою благодійної допомоги  з організації матеріально-технічного та медичного забеспечення Збройних сил України","Не тарифікується","Не передбачено","Не передбачено"]
["2.1.1.6.5","в рамках послуги \"Регулярний платіж\":"]
["2.1.1.6.5.1","в межах Банку"]
["2.1.1.6.5.1.1","на власні рахунки  (за виключенням рахунків, відкритих як фізичній особі-підприємцю)","Не тарифікується","Не тарифікується","Не тарифікується"]
["2.1.1.6.5.1.2","на рахунки інших отримувачів ","0,25% від суми min 5 грн., max 1000 грн.","Не передбачено","Не передбачено"]
["2.1.1.6.5.2","за межі Банку","0,50% від суми min 10 грн.","Не передбачено","Не передбачено"]
["2.1.1.7","Безготівкове списання коштів Банком з рахунку для подальшої конвертації/купівлі-продажу на валютному ринку України (в т.ч. за операцією \"Обмін валют\" в СДО \"ПІВДЕННИЙ MYBANK\" і  Мобільному застосунку \"Pivdenny Online\")","Не тарифікується","Не тарифікується","Не тарифікується"]
["2.1.1.8","Повернення помилково зарахованих коштів (не з вини Банку), які надійшли на рахунок у безготівковій формі, за заявою власника рухунку або довіреної особи           ","Не тарифікується","25 USD  (у гривні за курсом НБУ)","25 USD (у гривні за курсом НБУ)"]

{"sheet":"Для Виплат","index":1,"n_rows":59,"n_cols":5,"rows_kept":59,"cut":false,"hidden":false,"merged":[[17,2,17,4],[1,0,1,4],[2,1,2,4],[3,1,3,4],[4,1,4,4],[6,2,6,4],[8,2,8,4],[9,0,10,0],[9,2,9,4],[10,1,10,4],[12,2,12,4],[14,2,14,4],[37,2,37,4],[43,2,43,4],[44,3,45,3],[44,4,45,4],[28,2,28,4],[32,2,32,4],[33,2,33,4],[34,2,34,4],[36,2,36,4]]}
[null,null,null,null,"\"ЗАТВЕРДЖЕНО\"\nрішенням Продуктово-тарифного комітету \n(протокол №73 від 29.10.2025 року)\nВступають в дію з 05.11.2025 року"]
["Тарифи на банківськи послуги Акціонерного банку \"Південний\""]
[2," ФІЗИЧНІ ОСОБИ"]
["2.1","ВЕДЕННЯ ПОТОЧНИХ РАХУНКІВ ФІЗИЧНИХ ОСІБ У НАЦІОНАЛЬНІЙ, ІНОЗЕМНИХ ВАЛЮТАХ ТА У БАНКІВСЬКИХ МЕТАЛАХ"]
["2.1.2","Тарифний план \"Для виплат\" \n(у т.ч. для  рахунків за тарифними планами \"Пенсійний/соціальний\", \"Для моряків\", \"Для купівлі-продажу ОВДП\", \"Туристичний\", \"Нотаріальний\")"]
[null,"Операція/послуга","Гривня","Долари США, Євро","Англійський фунт стерлінгів, Швейцарський франк, Польський злотий"]
["2.1.2.1","Обслуговування рахунків:"]
["2.1.2.1.1","Відкриття поточного рахунку ","не тарифікується \n(рекомендовано відкриття для цільових надходжень: дивіденди, заробітна плата, купівля-продаж, купівля-продаж корпоративних прав, поворотня/безповоротня фінансова допомога, дарування, спадщина, страхові виплати та ін.","не тарифікується \n(рекомендовано відкриття для цільових надходжень: дивіденди, заробітна плата, купівля-продаж, купівля-продаж корпоративних прав, поворотня/безповоротня фінансова допомога, дарування, спадщина, страхові виплати,  та ін.","не тарифікується"]
["2.1.2.1.2","Закриття поточного рахунку","Не тарифікується"]
["2.1.2.1.3","Плата за обслуговування неактивного рахунку\n","Не тарифікується"]
[null,"«Неактивний рахунок» - рахунок, по якому не було оборотів на протязі останніх 6 місяців, за виключенням внутрішньобанківських операцій по нарахуванню % та списанню комісії."]
["2.1.2.1.4","Річна відсоткова ставка, що нараховується щомісяця на щоденні фактичні залишки грошових коштів на рахунку  (згідно рішення КУАП)",0,0,0]
["2.1.2.2","Готівкове поповнення рахунків:"]
["2.1.2.2.1","власником рахунку (у т.ч. за нотаріальною довіреністю)/іншою особою \n","1 % від суми","1 % від суми (у гривні за курсом НБУ)","Не передбачено"]
["2.1.2.2.2","іншою особою за договором купівлі-продажу об’єкту нерухомості та ін."]
["2.1.2.2.2.1","до 1 500 000.00 грн.","0,5% від суми  min 25 грн., maх 1500 грн. ","Не передбачено","Не передбачено"]
["2.1.2.2.2.2","від 1 500 000,01  грн","0,5% від суми  min 25 грн., maх 2500 грн. ","Не передбачено","Не передбачено"]
["2.1.2.3","Безготівкове зарахування коштів на рахунки:"]
["2.1.2.3.1","зарахування коштів, що надійшли від органів ПФ, УСЗН та ДСЗ (державна служба зайнятості), ФСС (фонд соціального страхування)","Не тарифікується","Не передбачено","Не передбачено"]
["2.1.2.3.2","за системами грошових переказів, якими це передбачено (за виключенням переказів SWIFT)","Не тарифікується","Не тарифікується","Не тарифікується"]
["2.1.2.3.3","наданих Банком як кредит відповідно до договору","Не тарифікується","Не передбачено","Не передбачено"]
["2.1.2.3.4","за Депозитними договорами","Не тарифікується","Не тарифікується","Не передбачено"]
["2.1.2.3.5","за Договорами з компанією-судовласником","згідно умов договору ","згідно умов договору ","згідно умов договору "]
["2.1.2.3.6","Безготівкове зарахування коштів, які надійшли на рахунок після конвертації/купівлі-продажу на валютному ринку України (в т.ч. за операцією \"Обмін валют\" в СДО \"ПІВДЕННИЙ MYBANK\")","Не тарифікується","Не тарифікується","Не тарифікується"]
["2.1.2.3.7","Безготівкове зарахування кредитних коштів, які надійшли на рахунок від Партнерів Банку за укладеними договорами","Не тарифікується","Не передбачено","Не передбачено"]
["2.1.2.3.8","Безготівкове зарахування коштів, які надійшли на рахунок після погашення / продажу ОВДП","Не тарифікується","Не тарифікується","Не передбачено"]
["2.1.2.3.9","інші надходження (в т.ч. перекази SWIFT)\n(зарахування з власних рахунків в межах банку для валюти Гривня, Дол США, Євро - не тарифікується )","1 % від суми","1 % від суми (у гривні за курсом НБУ)","1 % від суми (у гривні за курсом НБУ)"]
["2.1.2.4","Видача готівкових коштів з рахунків","Не тарифікується  \n(по рахункам зі спеціальним режимом користування - не передбачено) ","Не тарифікується","Не передбачено"]
["2.1.2.5","Додаткова плата за термінове отримання готівкових коштів у відділеннях Акціонерного банку «Південний» (без оформлення заявки)"]
["2.1.2.5.1","до 100 000,00 грн. (або еквівалент в іноземній валюті за курсом НБУ) у день","Не тарифікується","Не тарифікується","Не передбачено"]
["2.1.2.5.2","від 100 000,01 грн. до 7 500 000,00 грн. (або еквівалент в іноземній валюті за курсом НБУ) у день","1,8% від суми","1,8% від суми (у гривні за курсом НБУ)","Не передбачено"]
["2.1.2.5.3","від 7 500 000,01 грн. (або еквівалент в іноземній валюті за курсом НБУ) у день","1 % від суми","1 % від суми (у гривні за курсом НБУ)","Не передбачено"]
["2.1.2.6","Безготівкові перекази з рахунків:"]
["2.1.2.6.1","у системі дистанційного обслуговування \"ПІВДЕННИЙ MYBANK\" ","згідно з Додатком №3 до Тарифів"]
["2.1.2.6.2","у Мобільному застосунку \"Pivdenny Online\""," згідно з Додатком №6 до Тарифів"]
["2.1.2.6.3","через сервіс \"Open Banking\" "," згідно з Додатком №7 до Тарифів"]
["2.1.2.6.4","у  відділені Банку:"]
["2.1.2.6.4.1","в межах Банку"]
["2.1.2.6.4.1.1","на власні рахунки (за виключенням рахунків, відкритих як фізичній особі-підприємцю)","Не тарифікується","Не тарифікується","Не тарифікується"]
["2.1.2.6.4.1.2","на рахунки інших отримувачів","0,5% min 25 грн., max 1500 грн."," 0,5% від суми переказу min 5 USD/EUR, max 50 USD/EUR (у грн. за курсом НБУ)","0,5% від суми переказу min еквівалент 5 USD, max еквівалент 50 USD (у грн. за курсом НБУ)"]
["2.1.2.6.4.1.3","на внутрішньобанківські рахунки ","Не тарифікується","Не тарифікується","Не тарифікується"]
["2.1.2.6.4.1.4","на рахунки забудовників для інвестування в будівництво на первинному ринку ","0,5% від суми переказу min 25 грн., max 750 грн.","х","х"]
["2.1.2.6.4.2","В інші банки за межами України","Не передбачено","0,75% від суми переказу min 30 USD/EUR max 500 USD/EUR (у грн. за курсом НБУ)","0,75% від суми переказу min еквівалент 30 USD  max еквівалент 500 USD (у грн. за курсом НБУ) "]
["2.1.2.6.4.3","В інші банки по території України (по рахункам зі спеціальним режимом користування для валюти Гривня - не тарифікується)"]
["2.1.2.6.4.3.1","до  3 000 000,00  грн.  (або еквівалент в іноземній валюті за курсом НБУ) ","1 % від суми, min 25,00 грн.","1 % від суми переказу min 30 USD/EUR (у грн. за курсом НБУ) ","1 % від суми переказу min еквівалент 30 USD (у грн. за курсом НБУ) "]
["2.1.2.6.4.3.2","від 3 000 000,01 грн. (або еквівалент в іноземній валюті за курсом НБУ) ","Не тарифікується"]
["2.1.2.6.4.3.3","на рахунки забудовників для інвестування в будівництво на первинному ринку","0,5% від суми переказу min 25 грн., max 1000 грн.","х","х"]
["2.1.2.6.4.4","на рахунки клієнтів  АТ \"Регіональний інвестиційний банк\"","Не передбачено","25 USD/EUR (у грн. за курсом НБУ) ","25 USD (еквівалент) + 0,5% від суми переказу ( у гривнях за курсом НБУ) "]
["2.1.2.6.4.5","з метою оплати навчання, лікування","0,5% від суми переказу min 25 грн.","0,5% від суми переказу min 25 USD/EUR max 500 USD/EUR (у грн. за курсом НБУ)","0,5% від суми переказу min еквівалент 25 USD  max еквівалент 500 USD (у грн. за курсом НБУ) "]
["2.1.2.6.4.6","на рахунки Міністерства оборони України, Державної прикордонної служби України, їх підрозділів та частин з метою благодійної допомоги  з організації матеріально-технічного та медичного забеспечення Збройниї сил України","Не тарифікується","Не передбачено","Не передбачено"]
["2.1.2.6.4.7","за системами грошових переказів","Згідно тарифів систем грошових переказів","Згідно тарифів систем грошових переказів","Не передбачено"]
["2.1.2.6.4.8","наданих Банком як кредит відповідно до договору","Не тарифікується","Не передбачено","Не передбачено"]
["2.1.2.6.5","в рамках послуги \"Регулярний платіж\":"]
["2.1.2.6.5.1","в межах Банку"]
["2.1.2.6.5.1.2","на власні рахунки (за виключенням рахунків, відкритих як фізичній особі-підприємцю)","Не тарифікується","Не тарифікується","Не тарифікується"]
["2.1.2.6.5.1.3","на рахунки інших отримувачів ","0,25 % від суми min 5 грн., max 1000 грн.","Не передбачено","Не передбачено"]
["2.1.2.6.5.2","за межі Банку","0,50 % від суми min 10 грн.","Не передбачено","Не передбачено"]
["2.1.2.7","Безготівкове списання коштів Банком з рахунку для подальшої конвертації/купівлі-продажу на валютному ринку України (в т.ч. за операцією \"Обмін валют\" в СДО \"ПІВДЕННИЙ MYBANK\" і  Мобільному застосунку \"Pivdenny Online\")","Не тарифікується","Не тарифікується","Не тарифікується"]
["2.1.2.8","Повернення помилково зарахованих коштів (не з вини Банку), які надійшли на рахунок у безготівковій формі, за заявою власника рухунку або довіреної особи","Не тарифікується","25 USD (у гривні за курсом НБУ)","25 USD (у гривні за курсом НБУ)"]

{"sheet":"Для фінансового старту","index":2,"n_rows":33,"n_cols":4,"rows_kept":33,"cut":false,"hidden":false,"merged":[[22,2,22,3],[1,0,1,3],[2,1,2,3],[3,1,3,3],[4,1,4,3],[6,2,6,3],[8,2,8,3],[9,0,10,0],[9,2,9,3],[10,1,10,3],[13,2,13,3],[21,2,21,3]]}
[null,null,null,"\"ЗАТВЕРДЖЕНО\"\nрішенням Продуктово-тарифного комітету \n(протокол №73 від 29.10.2025 року)\nВступають в дію з 05.11.2025 року"]
["Тарифи на банківськи послуги Акціонерного банку \"Південний\""]
[2," ФІЗИЧНІ ОСОБИ"]
["2.1","ВЕДЕННЯ ПОТОЧНИХ РАХУНКІВ ФІЗИЧНИХ ОСІБ У НАЦІОНАЛЬНІЙ, ІНОЗЕМНИХ ВАЛЮТАХ ТА У БАНКІВСЬКИХ МЕТАЛАХ"]
["2.1.2","Тарифний план \"Для фінансового старту\" \n(для малолітніх/неповнолітніх осіб)"]
[null,"Операція/послуга","Гривня","Долари США, Євро"]
["2.1.2.1","Обслуговування рахунків:"]
["2.1.2.1.1","Відкриття поточного рахунку ","Не тарифікується","Не тарифікується"]
["2.1.2.1.2","Закриття поточного рахунку","Не тарифікується"]
["2.1.2.1.3","Плата за обслуговування неактивного рахунку\n","Не тарифікується"]
[null,"«Неактивний рахунок» - рахунок, по якому не було оборотів на протязі останніх 6 місяців, за виключенням внутрішньобанківських операцій по нарахуванню % та списанню комісії."]
["2.1.2.1.4","Процентна ставка, відсотків річних, що нараховується щомісяця на щоденні фактичні залишки грошових коштів на рахунку  (згідно рішення КУАП)",0,0]
["2.1.2.2","Готівкове поповнення рахунків","Не тарифікується  ","Не тарифікується"]
["2.1.2.3","Безготівкове зарахування коштів на рахунки:"]
["2.1.2.3.1","зарахування коштів, що надійшли від органів ПФ, УСЗН та ДСЗ (державна служба зайнятості), ФСС (фонд соціального страхування)","Не тарифікується","Не передбачено"]
["2.1.2.3.2","за системами грошових переказів, якими це передбачено (за виключенням переказів SWIFT)","Не тарифікується","Не тарифікується"]
["2.1.2.3.3","наданих Банком як кредит відповідно до договору","Не тарифікується","Не передбачено"]
["2.1.2.3.4","за Депозитними договорами","Не тарифікується","Не тарифікується"]
["2.1.2.3.5","Безготівкове зарахування коштів, які надійшли на рахунок після конвертації/купівлі-продажу на  валютному ринку України","Не тарифікується","Не тарифікується"]
["2.1.2.3.6","інші надходження (в т.ч. перекази SWIFT):\n","1 % від суми","1 % від суми (у гривні за курсом НБУ)"]
["2.1.2.4","Видача готівкових коштів з рахунків","Не тарифікується  ","Не тарифікується"]
["2.1.2.5","Безготівкові перекази з рахунків у відділенні банку:"]
["2.1.2.5.1.1","В межах Банку"]
["2.1.2.5.1.2","на власні рахунки (за виключенням рахунків, відкритих як фізичній особі-підприємцю)","Не тарифікується","Не тарифікується"]
["2.1.2.5.1.3","на рахунки інших отримувачів ","0,5% min 25 грн., max 1500 грн."," 0,5% від суми переказу min 5 USD/EUR, max 50 USD/EUR (у грн. за курсом НБУ)"]
["2.1.2.5.1.4","на внутрішньобанківські рахунки ","Не тарифікується","Не тарифікується"]
["2.1.2.5.2.1","В інші банки за межами України","Не передбачено","0,75% від суми переказу min 30 USD/EUR max 500 USD/EUR (у грн. за курсом НБУ)"]
["2.1.2.5.2.2","В інші банки по території України (по рахункам зі спеціальним режимом користування для валюти Гривня - не тарифікується)","1 % від суми, min 25,00 грн.","1 % від суми переказу min 30 USD/EUR (у грн. за курсом НБУ) "]
["2.1.2.5.2.3","на рахунки клієнтів  АТ \"Регіональний інвестиційний банк\"","Не передбачено","25 USD/EUR (у грн. за курсом НБУ) "]
["2.1.2.5.2.4","з метою оплати навчання, лікування","0,5% від суми переказу min 25 грн.","0,5% від суми переказу min 25 USD/EUR max 500 USD/EUR (у грн. за курсом НБУ)"]
["2.1.2.5.2.5","на рахунки Міністерства оборони України, Державної прикордонної служби України, їх підрозділів та частин з метою благодійної допомоги  з організації матеріально-технічного та медичного забезпечення Збройних сил України","Не тарифікується","Не передбачено"]
["2.1.2.5.2.6","за системами грошових переказів","Згідно тарифів систем грошових переказів","Згідно тарифів систем грошових переказів"]
["2.1.2.6","Повернення помилково зарахованих коштів (не з вини Банку), які надійшли на рахунок у безготівковій формі, за заявою власника рухунку або довіреної особи","Не тарифікується","25 USD (у гривні за курсом НБУ)"]

{"sheet":"Для інвестицій ","index":3,"n_rows":33,"n_cols":5,"rows_kept":33,"cut":false,"hidden":false,"merged":[[25,2,25,4],[7,2,7,4],[1,0,1,4],[2,1,2,4],[3,1,3,4],[4,1,4,4],[6,2,6,4],[9,0,10,0],[9,2,9,4],[10,1,10,4],[15,2,15,4],[16,2,16,4],[17,2,17,4],[20,2,20,4]]}
[null,null,null,null,"\"ЗАТВЕРДЖЕНО\"\nрішенням Продуктово-тарифного комітету \n(протокол №73 від 29.10.2025 року)\nВступають в дію з 05.11.2025 року"]
["Тарифи на банківськи послуги Акціонерного банку \"Південний\""]
[2," ФІЗИЧНІ ОСОБИ"]
["2.1","ВЕДЕННЯ ПОТОЧНИХ РАХУНКІВ ФІЗИЧНИХ ОСІБ У НАЦІОНАЛЬНІЙ, ІНОЗЕМНИХ ВАЛЮТАХ ТА У БАНКІВСЬКИХ МЕТАЛАХ"]
["2.1.3","Тарифний план \"Для інвестицій\""]
[null,"Операція/послуга","Гривня","Долари США, Євро","Англійський фунт стерлінгів, Швейцарський франк"]
["2.1.3.1","Обслуговування рахунків"]
["2.1.3.1.1","Відкриття поточного рахунку","200 грн."]
["2.1.3.1.2","Закриття  рахунку","Не тарифікується","Не тарифікується","Не тарифікується"]
["2.1.3.1.3","Плата за обслуговування неактивного рахунку \n","50 грн на місяць, але не більше залишку на рахунку"]
[null,"«Неактивний рахунок» - рахунок, по якому не було оборотів на протязі останніх 6 місяців, за виключенням внутрішньобанківських операцій по нарахуванню % та списанню комісії."]
["2.1.3.1.4","Річна відсоткова ставка, що нараховується щомісяця на щоденні фактичні залишки грошових коштів на рахунку (згідно рішення КУАП)",0,0,0]
["2.1.3.2","Готівкове поповнення рахунків","Не передбачено","Не передбачено","Не передбачено"]
["2.1.3.3","Безготівкове зарахування коштів на рахунки","Не тарифікується","Не тарифікується","Не тарифікується"]
["2.1.3.4","Видача готівкових коштів з рахунків","Не передбачено","Не передбачено","Не передбачено"]
["2.1.3.5","Безготівкові перекази з рахунків:"]
["2.1.3.5.1","у системі дистанційного обслуговування \"ПІВДЕННИЙ MYBANK\" ","згідно з Додатком №3 до Тарифів"]
["2.1.3.5.2","у Мобільному застосунку \"Pivdenny Online\"","згідно з Додатком №6 до Тарифів"]
["2.1.3.5.3","через сервіс \"Open Banking\" ","згідно з Додатком №7 до Тарифів"]
["2.1.3.5.4","у  відділені Банку:"]
["2.1.3.5.4.1","в межах Банку"]
["2.1.3.5.4.1.1","на власні рахунки (за виключенням рахунків, відкритих як фізичній особі-підприємцю)","Не тарифікується","Не тарифікується","Не тарифікується"]
["2.1.3.5.4.1.2","на рахунки інших отримувачів","0,5% від суми переказу min 25 грн., max 1500 грн.","0,5% від суми переказу min 5 USD/EUR, max 50 USD/EUR ( у грн. за курсом НБУ)","0,5% від суми переказу min еквівалент 5 USD, max еквівалент 50 USD ( у грн. за курсом НБУ)"]
["2.1.3.5.4.1.3","на внутрішньобанківські рахунки ","Не тарифікується","Не тарифікується","Не тарифікується"]
["2.1.3.5.4.2","В інші банки за межами України","Не передбачено","0,75% від суми переказу min 30 USD/EUR max 500 USD/EUR (у грн. за курсом НБУ)","0,75% від суми переказу min еквівалент 30 USD  max еквівалент 500 USD (у грн. за курсом НБУ) "]
["2.1.3.5.4.3","В інші банки по території України"]
["2.1.3.5.4.3.1","на власні рахунки:","1 % від суми, min 25,00 грн.","1 % від суми переказу min 30 USD/EUR (у грн. за курсом НБУ) ","1 % від суми переказу min еквівалент 30 USD  (у грн. за курсом НБУ) "]
["2.1.3.5.4.3.2","на рахунки інших отримувачів ","1 % від суми, min 25,00 грн.","Не передбачено","Не передбачено"]
["2.1.3.5.4.4","на рахунки клієнтів  АТ \"Регіональний інвестиційний банк\"","Не передбачено","25 USD/EUR (у грн. за курсом НБУ) ","25 USD (еквівалент) + 0,5% від суми переказу ( у гривнях за курсом НБУ) "]
["2.1.3.5.4.5","з метою оплати навчання, лікування","0,5% від суми переказу min 25 грн.","0,5% від суми переказу min 25 USD/EUR max 500 USD/EUR у грн. за курсом НБУ)","0,5% від суми переказу min еквівалент 25 USD  max еквівалент 500 USD (у грн. за курсом НБУ) "]
["2.1.3.5.4.6","на рахунки Міністерства оборони України, Державної прикордонної служби України, їх підрозділів та частин з метою благодійної допомоги  з організації матеріально-технічного та медичного забеспечення Збройниї сил України","Не тарифікується","Не передбачено","Не передбачено"]
["2.1.3.6","Безготівкове списання коштів Банком з рахунку для подальшої конвертації/купівлі-продажу на валютному ринку України (в т.ч. за операцією \"Обмін валют\" в СДО \"ПІВДЕННИЙ MYBANK\" і  Мобільному застосунку \"Pivdenny Online\")","Не тарифікується","Не тарифікується","Не тарифікується"]
["2.1.3.7","Повернення помилково зарахованих коштів (не з вини Банку), які надійшли на рахунок у безготівковій формі, за заявою власника рухунку або довіреної особи","Не тарифікується","25 USD (у гривні за курсом НБУ)","25 USD (у гривні за курсом НБУ)"]

{"sheet":" Приватний у металі","index":4,"n_rows":31,"n_cols":6,"rows_kept":31,"cut":false,"hidden":false,"merged":[[5,1,5,2],[5,3,5,4],[0,4,0,5],[1,0,1,5],[2,1,2,5],[3,1,3,5],[4,1,4,5],[6,1,6,2],[6,3,6,4],[7,1,7,2],[7,3,7,4],[8,1,8,2],[8,3,8,4],[9,1,9,2],[9,3,9,4],[10,1,10,2],[10,3,10,4],[11,1,11,2],[11,3,11,4],[12,1,12,2],[12,3,12,4],[13,1,13,2],[13,3,13,4],[14,1,14,2],[14,3,14,4],[18,1,18,4],[19,4,30,4],[19,5,30,5],[32,0,32,1],[15,1,15,2],[15,3,15,4],[16,1,16,2],[16,3,16,4],[17,1,17,2],[17,3,17,4]]}
[null,null,null,null,"\"ЗАТВЕРДЖЕНО\"\nрішенням Продуктово-тарифного комітету \n(протокол №73 від 29.10.2025 року)\nВступають в дію з 05.11.2025 року"]
["Тарифи на банківськи послуги Акціонерного банку \"Південний\""]
[2," ФІЗИЧНІ ОСОБИ"]
["2.1","ВЕДЕННЯ ПОТОЧНИХ РАХУНКІВ ФІЗИЧНИХ ОСІБ У НАЦІОНАЛЬНІЙ, ІНОЗЕМНИХ ВАЛЮТАХ ТА У БАНКІВСЬКИХ МЕТАЛАХ"]
["2.1.4","Тарифний план \"Приватний у металі\" "]
[null,"Операція/послуга",null,"Золото ",null,"Срібло, Платина"]
["2.1.4.1","Обслуговування рахунків:"]
["2.1.4.1.1","Відкриття поточного рахунку ",null,"відкриття нових рахунків з 05.10.2020р.- не передбачено",null,"відкриття нових рахунків з 05.10.2020р.- не передбачено"]
["2.1.4.1.2","Закриття поточного рахунку",null,"Не тарифікується",null,"Не тарифікується"]
["2.1.4.1.3","Річна відсоткова ставка, що нараховується щомісяця на щоденні фактичні залишки банківських металів на поточному рахунку (згідно рішення КУАП)",null,"0,00%",null,"0,00%"]
["2.1.4.2","Зарахування банківських металів (з фізичною поставкою) на поточний рахунок ",null,"Не передбачено",null,"Не передбачено"]
["2.1.4.3","Зарахування  банківських металів (без фізичної поставки) на поточний рахунок ",null,"Не передбачено",null,"Не передбачено"]
["2.1.4.4","Безготівкові перекази з рахунків в межах Банку:"]
["2.1.4.4.1","на власні рахунки (за виключенням рахунків, відкритих як фізичній особі-підприємцю)",null,"Не тарифікується",null,"Не тарифікується"]
["2.1.4.4.2","на рахунки інших отримувачів",null,"Не передбачено",null,"Не передбачено"]
["2.1.4.5","Безготівкові перекази з рахунків за межі Банку",null,"Не передбачено",null,"Не передбачено"]
["2.1.4.6","Купівля банківських металів (без фізичної поставки) за дорученням клієнтів на  валютному ринку України (заявки на купівлю приймаються від 1 тр.унцій та більше)",null,"0,50 %  від вартості  (у гривні за курсом НБУ)",null,"0,50 %  від вартості  (у гривні за курсом НБУ)"]
["2.1.4.7","Продаж банківських металів (без фізичної поставки) за дорученням клієнтів на  валютному ринку України",null,"0,50 %  від вартості  (у гривні за курсом НБУ)",null,"0,50 %  від вартості  (у гривні за курсом НБУ)"]
["2.1.4.8","Видача банківських металів  з фізичною поставкою номіналами зливків, які є в наявності в касі Банку на момент видачі з поточного рахунку клієнта фізичної особи у разі зарахування на поточний рахунок без фізичної поставки:",null,null,null,"Не передбачено"]
["2.1.4.8.1","Золоті зливки 1000г","32,20 тр. унцій",5.0000000000000001E-3,"Від вартості зливку банківського металу, що видається в гривнях за курсом НБУ на день здійснення операції","Х"]
["2.1.4.8.2","Золоті зливки 500г","16,10 тр. унцій",6.4999999999999997E-3]
["2.1.4.8.3","Золоті зливки 250г","8,04 тр. унцій",8.5000000000000006E-3]
["2.1.4.8.4","Золоті зливки 100г","3,22 тр. унцій",1.15E-2]
["2.1.4.8.5","Золоті зливки 50г","1,61 тр. унцій",1.4999999999999999E-2]
["2.1.4.8.6","Золоті зливки 31,103г","1 тр. унцій",2.5000000000000001E-2]
["2.1.4.8.7","Золоті зливки 20г","0,64 тр. унцій",0.03]
["2.1.4.8.8","Золоті зливки 10г","0,32 тр. унцій","5,50%"]
["2.1.4.8.9","Золоті зливки 5г","0,16 тр. унцій","8,50%"]
["2.1.4.8.10","Золоті зливки 2,5г","0,08 тр. унцій","15,00%"]
["2.1.4.8.11","Золоті зливки 2г","0,06 тр. унцій","20,00%"]
["2.1.4.8.12","Золоті зливки 1г","0,03 тр. унцій","40,00%"]

{"sheet":"Ескроу","index":5,"n_rows":29,"n_cols":3,"rows_kept":29,"cut":false,"hidden":false,"merged":[[30,1,30,2],[0,1,0,2],[1,0,1,2],[2,1,2,2],[3,1,3,2],[4,1,4,2],[9,1,9,2]]}
[null,"\"ЗАТВЕРДЖЕНО\"\nрішенням Продуктово-тарифного комітету \n(протокол №73 від 29.10.2025 року)\nВступають в дію з 05.11.2025 року"]
["Тарифи на банківськи послуги Акціонерного банку \"Південний\""]
[2," ФІЗИЧНІ ОСОБИ"]
["2.1","ВЕДЕННЯ ПОТОЧНИХ РАХУНКІВ ФІЗИЧНИХ ОСІБ У НАЦІОНАЛЬНІЙ, ІНОЗЕМНИХ ВАЛЮТАХ ТА У БАНКІВСЬКИХ МЕТАЛАХ"]
["2.1.5","Тарифний план \"Ескроу\""]
[null,"Операція/послуга","Гривня"]
["2.1.5.1","Обслуговування рахунків"]
["2.1.5.1.1","Відкриття поточного рахунку","Не тарифікується"]
["2.1.5.1.2","Закриття  поточного  рахунку","Не тарифікується"]
["2.1.5.1.3","Обслуговування рахунку (послуги пов'язані з обслуговуванням рахунка та здійсненням операцій за ним):"]
["2.1.5.1.3.1."," - кількість бенефіціарів не перевищує 500 осіб:"," 2% від суми виплат, мін. 30 тис. грн (одноразово)"]
["2.1.5.1.3.2."," - кількість бенефіціарів перевищує 500 осіб","2% від суми виплат, мін. 30 тис.грн. \n + 15 тис. грн. за кожні наступні 500 осіб (одноразово)"]
["2.1.5.1.4","Річна відсоткова ставка, що нараховується щомісяця на щоденні фактичні залишки грошових коштів на рахунку (згідно рішення КУАП)",0]
["2.1.5.1.5","Внесення уточнень до реестру бенефіціарів по зверненню емітента цінних паперів","50 грн. за обробку одного звернення (сплачується власником рахунку ескроу)."]
["2.1.5.2","Готівкове поповнення рахунків: "]
["2.1.5.2.1","власником рахунку (у т.ч. за довіреністю)","Не тарифікується"]
["2.1.5.2.2","іншою особою","Не передбачено"]
["2.1.5.3","Безготівкове зарахування коштів на рахунки","Не тарифікується"]
["2.1.5.4","Видача готівкових коштів з рахунків  (згідно договору рахунку умовного зберігання)","Не тарифікується"]
["2.1.5.5","Безготівкові перекази з рахунків (згідно договору рахунку умовного зберігання):"]
["2.1.5.5.1","в межах Банку"]
["2.1.5.5.1.1","на власні рахунки ","Не тарифікується"]
["2.1.5.5.1.2","на рахунки інших отримувачів","Не тарифікується"]
["2.1.5.5.1.3","на внутрішньобанківські рахунки ","Не тарифікується"]
["2.1.5.5.2","В інші банки за межами України","Не передбачено"]
["2.1.5.5.3","В інші банки по території України (згідно договору рахунку умовного зберігання)"]
["2.1.5.5.3.1","на власні рахунки:","Не тарифікується"]
["2.1.5.5.3.2","на рахунки інших отримувачів ","Не тарифікується"]
["2.1.5.6","Повернення помилково зарахованих коштів (не з вини Банку), які надійшли на рахунок у безготівковій формі, за заявою власника рухунку або довіреної особи","Не тарифікується"]

{"sheet":"Пакетна пропозиція","index":6,"n_rows":80,"n_cols":6,"rows_kept":80,"cut":false,"hidden":false,"merged":[[50,1,50,6],[8,1,8,6],[9,1,9,6],[47,5,47,6],[48,5,48,6],[32,5,32,6],[43,5,43,6],[13,5,13,6],[14,5,14,6],[15,5,15,6],[44,5,44,6],[45,5,45,6],[46,5,46,6],[36,5,36,6],[16,5,16,6],[17,5,17,6],[33,5,33,6],[34,5,34,6],[35,5,35,6],[42,5,42,6],[37,5,37,6],[38,5,38,6],[39,5,39,6],[40,5,40,6],[41,5,41,6],[54,3,54,6],[68,0,70,0],[68,1,70,2],[76,5,76,6],[77,5,77,6],[71,0,72,0],[71,1,72,1],[71,5,72,5],[76,2,76,4],[77,2,77,4],[75,5,75,6],[74,1,74,6],[68,3,68,5],[69,3,69,5],[79,1,79,6],[62,3,62,6],[63,3,63,6],[56,3,56,6],[55,3,55,6],[65,3,65,6],[64,3,64,6],[67,1,67,5],[1,5,1,6],[0,5,0,6],[27,5,27,6],[29,5,29,6],[30,5,30,6],[11,5,11,6],[12,5,12,6],[5,5,5,6],[2,0,2,6],[3,1,3,6],[4,1,4,6],[6,5,6,6],[10,5,10,6],[51,0,53,0],[51,1,53,1],[31,5,31,6],[18,5,18,6],[19,5,19,6],[21,5,21,6],[22,5,22,6],[23,5,23,6],[24,5,24,6],[25,5,25,6],[26,5,26,6],[20,5,20,6],[51,2,53,2],[51,3,51,6],[52,3,52,6],[53,3,53,6]]}
[null,null,null,null,null,"\"ЗАТВЕРДЖЕНО\"\nрішенням Продуктово-тарифного комітету \n(протокол №26 від 09.04.2026 року)\nВступають в дію з 09.04.2026 року\nДіють до 08.05.2026 року"]
[]
["Тарифи на банківськи послуги Акціонерного банку \"Південний\""]
[2," ФІЗИЧНІ ОСОБИ"]
["2.1","Пакетна пропозиція для фізичних осіб \"ПАРТНЕРСЬКА\"1"]
[null,"Операція/послуга","Гривня","Долар США/ Євро","Англійський фунт стерлінгів, Швейцарський франк, Польський злотий","Пояснення"]
["2.1.1","Відкриття продуктів 2.2 та/або 2.3 та/або 2.4 та/або 2.5 із встановленням категорії \"Партнер\"","Не тарифікується","Не тарифікується","Не тарифікується","Пакетна пропозиція розповсюджується для фізичних осіб, віднесених до категорії \"Партнер\"1"]
[]
["2.2","ВЕДЕННЯ ПОТОЧНИХ РАХУНКІВ ФІЗИЧНИХ ОСІБ У НАЦІОНАЛЬНІЙ, ІНОЗЕМНИХ ВАЛЮТАХ ТА У БАНКІВСЬКИХ МЕТАЛАХ"]
["2.2.1","ТАРИФНИЙ ПЛАН \"ПАРТНЕРСЬКИЙ\""]
[null,"Операція/послуга","Гривня","Долар США/ Євро","Англійський фунт стерлінгів, Швейцарський франк, Польський злотий","Пояснення"]
["2.2.1.1","Обслуговування рахунків:"]
["2.2.1.1.1","Відкриття поточного рахунку","Не тарифікується","Не тарифікується","Не тарифікується"]
["2.2.1.1.2","Закриття поточного рахунку","Не тарифікується","Не тарифікується","Не тарифікується"]
["2.2.1.1.3","Плата за обслуговування неактивного рахунку\n(«Неактивний рахунок» - рахунок, по якому не було оборотів на протязі останніх 6 місяців, за виключенням внутрішньобанківських операцій по нарахуванню % та списанню комісії)","50 грн на місяць, але не більше залишку на рахунку","10 USD/EUR на місяць, але не більше залишку на рахунку (у гривні за курсом НБУ)","10 USD на місяць, але не більше залишку на рахунку (у гривні за курсом НБУ)"]
["2.2.1.1.4","Річна відсоткова ставка, що нараховується щомісяця на щоденні фактичні залишки грошових коштів на рахунку (згідно рішення КУАП)",0,0,0]
["2.2.1.2","Готівкове поповнення рахунків:"]
["2.2.1.2.1","власником рахунку (у т.ч. за  довіреністю) ","Не тарифікується","Не тарифікується","Не тарифікується"]
["2.2.1.2.2","іншою особою","Не тарифікується","Не тарифікується","Не тарифікується"]
["2.2.1.3","Безготівкове зарахування коштів на рахунки","Не тарифікується","Не тарифікується","Не тарифікується"]
["2.2.1.4","Видача готівкових коштів з рахунку:","1% від суми","1% від суми","1% від суми","Попередження\nОдночасно при зменшенні тарифікації пропорційно збільшується вартість віповідних тарифів/послуг Банку згідно з встановленим Додатком - Конструктором, що є невід'ємною частиною Пакетної пропозиції, розміром."]
["2.2.1.5","Додаткова плата за термінове отримання готівкових коштів у відділеннях Акціонерного банку «Південний» (без оформлення заявки)"]
["2.2.1.5.1","до 100 000,00 грн. (або еквівалент в іноземній валюті за курсом НБУ) у день ","Не тарифікується","Не тарифікується","Не тарифікується"]
["2.2.1.5.2","від 100 000,01 грн. до 7 500 000,00 грн. (або еквівалент в іноземній валюті за курсом НБУ) у день","1,8% від суми","1,8% від суми  (у гривні за курсом НБУ)","1,8% від суми"]
["2.2.1.5.3","від 7 500 000,01 грн. (або еквівалент в іноземній валюті за курсом НБУ) у день","1% від суми","1% від суми  (у гривні за курсом НБУ)","1% від суми"]
["2.2.1.6","Безготівкові перекази з рахунків:"]
["2.2.1.6.1","у системі дистанційного обслуговування \"ПІВДЕННИЙ MYBANK\" ","згідно з Додатком №3 до Тарифів","згідно з Додатком №3 до Тарифів","згідно з Додатком №3 до Тарифів"]
["2.2.1.6.2","у Мобільному застосунку \"Pivdenny Online\""," згідно з Додатком №6 до Тарифів"," згідно з Додатком №6 до Тарифів"," згідно з Додатком №6 до Тарифів"]
["2.2.1.6.3","через сервіс \"Open Banking\" "," згідно з Додатком №7 до Тарифів"]
["2.2.1.6.4","у  відділені Банку:"]
["2.2.1.6.4.1","в межах Банку"]
["2.2.1.6.4.1.1","на власні рахунки (за виключенням рахунків, відкритих як фізичній особі-підприємцю)","Не тарифікується","Не тарифікується","Не тарифікується"]
["2.2.1.6.4.1.2","на рахунки інших отримувачів обирається Клієнтом згідно з Додатком - Конструктором, що є невід'ємною частиною Пакетної пропозиції","0,5% від суми переказу min 25 грн. або max 90 000 грн/ \n0,4% від суми переказу min 25 грн. або max 80 000 грн/ \n0,3% від суми переказу min 25 грн. або max 70 000 грн/ \n0,2% від суми переказу min 25 грн. або max 60 000 грн/ \n0,1% від суми переказу min 25 грн. або max 50 000 грн/ \nабо Безкоштовно"," 0,5% від суми переказу min 5 USD/EUR, max 50 USD/EUR (у грн. за курсом НБУ)"," 0,5% від суми переказу min 5 USD, max 50 USD (у грн. за курсом НБУ)","Попередження\nОдночасно при зменшенні тарифікації пропорційно збільшується вартість віповідних тарифів/послуг Банку згідно з встановленим Додатком - Конструктором, що є невід'ємною частиною Пакетної пропозиції, розміром."]
["2.2.1.6.4.1.3","на внутрішньобанківські рахунки ","Не тарифікується","Не тарифікується","Не тарифікується"]
["2.2.1.6.4.1.4","на рахунки забудовників для інвестування в будівництво на первинному ринку обирається Клієнтом згідно з Додатком - Конструктором, що є невід'ємною частиною Пакетної пропозиції","0,5% від суми переказу min 25 грн. або max 90 000 грн/ \n0,4% від суми переказу min 25 грн. або max 80 000 грн/ \n0,3% від суми переказу min 25 грн. або max 70 000 грн/ \n0,2% від суми переказу min 25 грн. або max 60 000 грн/ \n0,1% від суми переказу min 25 грн. або max 50 000 грн/ \nабо Безкоштовно","Не передбачено","Не передбачено","Попередження\nОдночасно при зменшенні тарифікації пропорційно збільшується вартість віповідних тарифів/послуг Банку згідно з встановленим Додатком - Конструктором, що є невід'ємною частиною Пакетної пропозиції, розміром."]
["2.2.1.6.4.2","В інші банки за межами України обирається Клієнтом згідно з Додатком - Конструктором, що є невід'ємною частиною Пакетної пропозиції","Не передбачено","0,7% від суми переказу min 30 USD/EUR або max 2750 USD/EUR (у грн. за курсом НБУ)/ \n0,6% від суми переказу min 30 USD/EUR або max 2500 USD/EUR (у грн. за курсом НБУ)/ \n0,5% від суми переказу min 30 USD/EUR або max 2250 USD/EUR (у грн. за курсом НБУ)/ \n0,4% від суми переказу min 30USD/EUR. або max 2000 USD/EUR (у грн. за курсом НБУ)/ \n0,3% від суми переказу  min 30 USD/EUR. або max 1750 USD/EUR (у грн. за курсом НБУ)/ \n0,2% від суми переказу  min 30 USD/EUR. або max 1500 USD/EUR (у грн. за курсом НБУ)/  \n0,1% від суми переказу  min 30 USD/EUR. або max 1250 USD/EUR (у грн. за курсом НБУ)/  \n200 USD/EUR/ 100 USD/EUR \nабо Безкоштовно","0,7% від суми переказу min 30 USD/EUR або max 2750 USD/EUR (у грн. за курсом НБУ)/ \n0,6% від суми переказу min 30 USD/EUR або max 2500 USD (у грн. за курсом НБУ)/ \n0,5% від суми переказу min 30 USD/EUR або max 2250 USD (у грн. за курсом НБУ)/ \n0,4% від суми переказу min 30USD/EUR. або max 2000 USD (у грн. за курсом НБУ)/ \n0,3% від суми переказу  min 30 USD/EUR. або max 1750 USD (у грн. за курсом НБУ)/ \n0,2% від суми переказу  min 30 USD/EUR. або max 1500 USD (у грн. за курсом НБУ)/  \n0,1% від суми переказу  min 30 USD/EUR. або max 1250 USD (у грн. за курсом НБУ)/  \n200 USD/EUR/ 100 USD \nабо Безкоштовно","Попередження\nОдночасно при зменшенні тарифікації пропорційно збільшується вартість віповідних тарифів/послуг Банку згідно з встановленим Додатком - Конструктором, що є невід'ємною частиною Пакетної пропозиції, розміром."]
["2.2.1.6.4.3","В інші банки по території України обирається Клієнтом згідно з Додатком - Конструктором, що є невід'ємною частиною Пакетної пропозиції","1% від суми переказу min 25 грн. або max 90 000 грн/ \n0,4% від суми переказу min 25 грн. або max 80 000 грн/ \n0,3% від суми переказу min 25 грн. або max 70 000 грн/ \n0,2% від суми переказу min 25 грн. або max 60 000 грн/ \n0,1% від суми переказу min 25 грн. або max 50 000 грн/ \nабо Безкоштовно","1 % від суми переказу min 30 USD/EUR (у грн. за курсом НБУ) ","1 % від суми переказу min 30 USD (у грн. за курсом НБУ) ","Попередження\nОдночасно при зменшенні тарифікації пропорційно збільшується вартість віповідних тарифів/послуг Банку згідно з встановленим Додатком - Конструктором, що є невід'ємною частиною Пакетної пропозиції, розміром."]
["2.2.1.6.4.3.1","на рахунки забудовників для інвестування в будівництво на первинному ринку обирається Клієнтом згідно з Додатком - Конструктором, що є невід'ємною частиною Пакетної пропозиції","0,5% від суми переказу min 25 грн. або max 90 000 грн/ \n0,4% від суми переказу min 25 грн. або max 80 000 грн/ \n0,3% від суми переказу min 25 грн. або max 70 000 грн/ \n0,2% від суми переказу min 25 грн. або max 60 000 грн/ \n0,1% від суми переказу min 25 грн. або max 50 000 грн/ \nабо Безкоштовно","Не передбачено","Не передбачено","Попередження\nОдночасно при зменшенні тарифікації пропорційно збільшується вартість віповідних тарифів/послуг Банку згідно з встановленим Додатком - Конструктором, що є невід'ємною частиною Пакетної пропозиції, розміром."]
["2.2.1.6.4.4","на рахунки клієнтів  АТ \"Регіональний інвестиційний банк\"","Не передбачено","25 USD/EUR (у грн. за курсом НБУ) ","25 USD (у грн. за курсом НБУ) "]
["2.2.1.6.4.5","з метою оплати навчання, лікування обирається Клієнтом згідно з Додатком - Конструктором, що є невід'ємною частиною Пакетної пропозиції","0,5% від суми переказу min 25 грн. або max 90 000 грн/ \n0,4% від суми переказу min 25 грн. або max 80 000 грн/ \n0,3% від суми переказу min 25 грн. або max 70 000 грн/ \n0,2% від суми переказу min 25 грн. або max 60 000 грн/ \n0,1% від суми переказу min 25 грн. або max 50 000 грн/ \nабо Безкоштовно","0,5% від суми переказу min 25 USD/EUR max 500 USD/EUR (у грн. за курсом НБУ)","0,5% від суми переказу min 25 USD max 500 USD (у грн. за курсом НБУ)","Попередження\nОдночасно при зменшенні тарифікації пропорційно збільшується вартість віповідних тарифів/послуг Банку згідно з встановленим Додатком - Конструктором, що є невід'ємною частиною Пакетної пропозиції, розміром."]
["2.2.1.6.4.6","За системами грошових переказів, якими це передбачено","Згідно тарифів систем грошових переказів","Згідно тарифів систем грошових переказів","Згідно тарифів систем грошових переказів"]
["2.2.1.6.4.7","на рахунки Міністерства оборони України, Державної прикордонної служби України, їх підрозділів та частин з метою благодійної допомоги  з організації матеріально-технічного та медичного забеспечення Збройних сил України","Не тарифікується","Не тарифікується","Не тарифікується"]
["2.2.1.6.5","в рамках послуги \"Регулярний платіж\":"]
["2.2.1.6.5.1","в межах Банку"]
["2.2.1.6.5.1.1","на власні рахунки  (за виключенням рахунків, відкритих як фізичній особі-підприємцю)","Не тарифікується","Не тарифікується","Не тарифікується"]
["2.2.1.6.5.1.2","на рахунки інших отримувачів ","0,25% від суми min 5 грн., max 1000 грн.","0,25% від суми min 1 USD/EUR., max 25 USD/EUR (у грн. за курсом НБУ)/","0,25% від суми min 1 USD., max 25 USD (у грн. за курсом НБУ)/"]
["2.2.1.6.5.2","за межі Банку","0,5% від суми min 10 грн.","0,5% від суми min 2 USD/EUR","0,5% від суми min 2 USD"]
["2.2.1.7","Безготівкове списання коштів Банком з рахунку для подальшої конвертації/купівлі-продажу на МВРУ (в т.ч. за операцією \"Обмін валют\" в СДО \"ПІВДЕННИЙ MYBANK\" і  Мобільному застосунку \"Pivdenny Online\")","Не тарифікується","Не тарифікується","Не тарифікується"]
["2.2.1.8","Повернення помилково зарахованих коштів (не з вини Банку), які надійшли на рахунок у безготівковій формі, за заявою власника рухунку або довіреної особи           ","Не тарифікується","Не тарифікується","Не тарифікується"]
[]
["2.3","ВКЛАД \"ПРЕМІУМ - ПАРТНЕР\""]
["2.3.1","Валюта вкладу","Сума вкладу при оформленні / автоматичній пролонгації","Процентна ставка для строку, % річних"]
[null,null,null,"обирається Клієнтом згідно з Додатком - Конструктором, що є невід'ємною частиною Пакетної пропозиції\nПопередження\nОдночасно при збільшенні процентної ставки пропорційно збільшується вартість відповідних тарифів/послуг Банку згідно з встановленим Додатком - Конструктором, що є невід'ємною частиною Пакетної пропозиції, розміром"]
[null,null,null,"3 місяці"]
["2.3.1.1","гривня","від 2 000 000,00 ",14.5]
["2.3.1.2","долар США","від 100 000,00 до 1 000 000,00",1.5]
["2.3.1.3","євро","від 100 000,00 до 1 000 000,00",1.5]
["2.3.2","Умови вкладу"]
["2.3.2.1","Поповнення вкладу ","При наявності бонусу до ставки можливість поповнення вкладу не передбачена"]
["2.3.2.2","Виплата процентів","щомісяця"]
["2.3.2.3","Автоматична пролонгація ","не передбачена"]
["2.3.2.4","Умови повернення","після закінчення строку дії договору"]
["2.3.2.5","Програма лояльності","передбачена при оформленні вкладу у вигляді бонусу до ставки згідно з Додатком - Конструктором, що є невід'ємною частиною Пакетної пропозиції. "," +0,25%; +0,50%; +0,75%; +1,00%; +1,25%; +1,50%; "]
["2.3.2.6","гривня з урахуванням Програми лояльності","від 2 000 000,00 ","14,50; 14,75; 15,00; 15,25; 15,50; 15,75; 16,00; "]
["2.3.2.7","долар США з урахуванням Програми лояльності","від 100 000,00 до 1 000 000,00","1,50; 1,75%; 2,00%; 2,25%; 2,50%"]
["2.3.2.8","євро з урахуванням Програми лояльності","від 100 000,00 до 1 000 000,00","1,50%; 1,75%; 2,00%; 2,25%"]
[]
["2.4","Поточний рахунок з використанням платіжної картки\nв Тарифах \"Картка для власних потреб\"; \"Картка для виплат\"; \"Картка моряка/ ІТ\"; \"Зарплатна картка\""]
["2.4.1","Послуга",null,"Тариф, Тарифний план"]
[null,null,null,"обираються Клієнтом згідно з Додатком - Конструктором, що є невід'ємною частиною Пакетної пропозиції"]
[null,null,null,"БЕЗМЕЖ","ЕЛІТ","Пояснення"]
["2.4.1.1","Плата за оформлення/ зміну Тарифного плану, в т.ч. з відкриттям рахунку з подальшим обслуговуванням в рамках Тарифів Банку по обслуговуванню поточного рахунку з використанням платіжної картки з оформленням основної персоніфікованої картки (іменна) ","віртуальна для власника рахунку","Безкоштовно","Безкоштовно","Попередження\nОдночасно при використанні тарифу пропорційно збільшується вартість віповідних тарифів/послуг Банку згідно з встановленим Додатком - Конструктором, що є невід'ємною частиною Пакетної пропозиції, розміром.\nОформлення основної картки з відкриттям першого/ єдиного рахунку в Банку здійснюється виключно у вигляді фізичної картки.\nВалюта на вибір: гривня/ долар США/ євро."]
[null,null,"фізична (у вигляді пластикової картки) для власника рахунку","Безкоштовно","Безкоштовно"]
[]
["2.5","ВАЛЮТНО-ОБМІННІ ОПЕРАЦІЇ"]
[null,"Операція/послуга","Гривня","Долари США, Євро","Англійський фунт стерлінгів, Швейцарський франк, Польський злотий","Пояснення"]
["2.5.1.","Купівля-продаж іноземної валюти за заявою клієнта на МВРУ обираються Клієнтом згідно з Додатком - Конструктором, що є невід'ємною частиною Пакетної пропозиції","0,5% від суми переказу  (у грн. за курсом НБУ)/ \n0,4% від суми переказу  (у грн. за курсом НБУ)/ \n0,3% від суми переказу   (у грн. за курсом НБУ)/ \n0,2% від суми переказу   (у грн. за курсом НБУ)/  \n0,1% від суми переказу   (у грн. за курсом НБУ)/  \nабо Безкоштовно",null,null,"Попередження\nОдночасно при зменшенні тарифікації пропорційно збільшується вартість віповідних тарифів/послуг Банку згідно з встановленим Додатком - Конструктором, що є невід'ємною частиною Пакетної пропозиції, розміром."]
["2.5.2","Безготівкові операції з конвертації іноземних валют: обираються Клієнтом згідно з Додатком - Конструктором, що є невід'ємною частиною Пакетної пропозиції","0,5% від суми переказу  (у грн. за курсом НБУ)/ \n0,4% від суми переказу  (у грн. за курсом НБУ)/ \n0,3% від суми переказу   (у грн. за курсом НБУ)/ \n0,2% від суми переказу   (у грн. за курсом НБУ)/  \n0,1% від суми переказу   (у грн. за курсом НБУ)/  \nабо Безкоштовно",null,null,"Попередження\nОдночасно при зменшенні тарифікації пропорційно збільшується вартість віповідних тарифів/послуг Банку згідно з встановленим Додатком - Конструктором, що є невід'ємною частиною Пакетної пропозиції, розміром."]
[]
[1,"Пакетна пропозиція розповсюджується для фізичних осіб, віднесених до категорії \"Партнер\".\nКатегорія \"Партнер\" встановлюється Банком клієнтам та членам їх сімей, якщо такі клієнти відносяться до бізнес-ліній КБВ, РЕР, ТОП-менеджер, і є особами, співпраця з якими сприяє розвитку відносин з клієнтами корпоративного бізнесу, а саме якщо клієнти:\n- є авторитетними представниками своєї професії/роду діяльності;\n- мають вплив на взаємовідносини з клієнтами корпоративного бізнесу;\n- інші обґрунтовані переваги. \nЧлени сім'ї - чоловік/дружина або прирівняні до них особи, син, дочка, пасинок, падчерка, усиновлена особа, особа, яка перебуває під опікою або піклуванням, зять та невістка і прирівняні до них особи, батько, мати, вітчим, мачуха, усиновлювачі, опікуни чи піклувальники, тощо.\nРозгляд присвоєння клієнтові категорії \"Партнер\" можливий після надання відповідних документів та/або обґрунтування."]

{"sheet":"Додаток","index":7,"n_rows":28,"n_cols":16,"rows_kept":28,"cut":false,"hidden":false,"merged":[[0,7,0,8],[18,2,19,2],[18,3,19,3],[18,8,19,8]]}
[null,null,null,null,null,null,null,"Додаток \nКонструктор до Пакетної пропозиції \"Партнерська\""]
["Термін дії, днів",1,"№","Перелік опцій","Зміна","Тариф","Сума операції","Новий тариф","Економія+/Витрати-",null,null,null,{"$f":"IF(AND(R2 = 0, L2=\"Error\"), 0, IF(Q3 = 0, O2/10000 - 0.015, -Q3))","v":-1.4999999999999999E-2},{"$f":"IF(AND(S2 = 0, M2=\"Error\"), 0, IF(#REF! = 0, P2/10000 - 0.015, -#REF!))","v":{"$error":"#REF!"}}]
[null,null,1,"Безготівкові перекази з рахунку в межах Банку",0,5.0000000000000001E-3,0,{"$f":"F3+E3","v":5.0000000000000001E-3},{"$f":"G3*(F3-H3)","v":0},50,null,{"$f":"J3/10000 - 0.005","v":0},{"$f":"IF(D3=\"Error\", 0, VLOOKUP($D$2, __SETTINGS__!$A$2:$W$6, 13, FALSE))","v":0}]
[null,null,2,"Безготівкові перекази з рахунку в інші банки по території України ",0,5.0000000000000001E-3,0,{"$f":"F4+E4","v":5.0000000000000001E-3},{"$f":"G4*(F4 - H4)","v":0},145,null,{"$f":"J4/10000 - 0.01","v":4.5000000000000005E-3},{"$f":"IF(D4=\"Error\", 0, VLOOKUP($D$2, __SETTINGS__!$A$2:$W$6, 14, FALSE))","v":5.0000000000000001E-3},null,null,{"$f":" J4/10000 - 0.008","v":6.5000000000000006E-3}]
[null,null,3,"Видача готівкових коштів з рахунку",5.0000000000000001E-4,5.0000000000000001E-3,0,{"$f":"F5 + E5","v":5.4999999999999997E-3},{"$f":"G5*(F5 - H5)","v":0}]
[null,null,4,{"$f":"IF(VLOOKUP($D$2, __SETTINGS__!$A$2:$W$6, 5, FALSE) = 1, \"Отримання готівкових коштів в банкоматах та відділеннях інших банків України \", \"Error\")","v":"Отримання готівкових коштів в банкоматах та відділеннях інших банків України "},0,1.2E-2,9100000,1.2E-2,{"$f":"G6*(F6-H6)","v":0},30,null,{"$f":"J6/10000 - 0.015","v":-1.2E-2},{"$f":"IF(D6=\"Error\", 0, VLOOKUP($D$2, __SETTINGS__!$A$2:$W$6, 15, FALSE))","v":500}]
[null,null,null,null,null,null,null,null,null,0,null,{"$f":"J7/10000 - 0.015","v":-1.4999999999999999E-2},{"$f":"IF(D7=\"Error\", 0, VLOOKUP($D$2, __SETTINGS__!$A$2:$W$6, 16, FALSE))","v":1.2E-2}]
[null,null,5,"Безготівкове поповнення поточного рахунку у банку \"Південний\"",0,5.0000000000000001E-3,10000000,{"$f":" F8 + E8","v":5.0000000000000001E-3},{"$f":"G8*(F8-H8)","v":0}]
[null,null,4,"Перерахування, сортування та оброблення готівки в національній валюті по замовленню клієнта",0,1.4999999999999999E-2,0,{"$f":"F9+E9","v":1.4999999999999999E-2},{"$f":"G9*(F9-H9)","v":0},30,null,null,{"$f":"IF(D9=\"Error\", 0, VLOOKUP($D$2, __SETTINGS__!$A$2:$W$6, 17, FALSE))","v":0.01}]
[null,null,5,"Оформлення основної преміальної картки обрати з переліку",{"$f":"INDEX(__SETTINGS__!$C$63:$C$69,MATCH($D$10,__SETTINGS__!$B$63:$B$69,0))","v":0},"x","x","обрати тариф з переліку",{"$f":"E10","v":0},800,null,null,{"$f":"IF(D10=\"Error\", 0, VLOOKUP($D$2, __SETTINGS__!$A$2:$W$6, 14, FALSE))","v":5.0000000000000001E-3}]
[null,null,7,{"$f":"IF(VLOOKUP($D$2, __SETTINGS__!$A$2:$W$6, 8, FALSE) = 1, \"Щомісячна плата за обслуговування карток в рамках Тарифного плану\", \"Error\")","v":"Щомісячна плата за обслуговування карток в рамках Тарифного плану"},0,100,"ввести вартість послуги",100,{"$f":"(F11-H11)","v":0},80]
[null,null,6,{"$f":"IF(VLOOKUP($D$2, __SETTINGS__!$A$2:$X$6, 10, FALSE) = 1, \"Перевірка справжності купюр, перерахування та оброблення готівки\", \"Error\")","v":"Перевірка справжності купюр, перерахування та оброблення готівки"},0,2E-3,0,{"$f":"E12+F12","v":2E-3},{"$f":"G12*(F12-H12)","v":0},null,null,null,{"$f":"IF(D12=\"Error\", 0, VLOOKUP($C$2, __SETTINGS__!$A$2:$W$6, 19, FALSE))","v":{"$error":"#N/A"}}]
[null,null,6,{"$f":"IF(VLOOKUP($D$2, __SETTINGS__!$A$2:$X$6, 24, FALSE) = 1, \"Перерахування, сортування та оброблення готівки в національній валюті по замовленню клієнта\", \"Error\")","v":"Перерахування, сортування та оброблення готівки в національній валюті по замовленню клієнта"},-2E-3,0.01,90000000,{"$f":"E13+F13","v":8.0000000000000002E-3},{"$f":"G13*(F13-H13)","v":180000}]
[null,null,9,{"$f":"IF(VLOOKUP($D$2, __SETTINGS__!$A$2:$W$6, 5, FALSE) = 1, \"Отримання готівкових коштів в банкоматах та відділеннях за межами України\", \"Error\")","v":"Отримання готівкових коштів в банкоматах та відділеннях за межами України"},0,5.0000000000000001E-3,9000000,{"$f":"E14+F14","v":5.0000000000000001E-3},{"$f":"G14*(F14-H14)","v":0}]
[]
[null,null,8,{"$f":"IF(VLOOKUP($D$2, __SETTINGS__!$A$2:$X$6, 12, FALSE) = 1, \"Перевірка справжності купюр,перерахування та оброблення готівки\", \"Error\")","v":"Перевірка справжності купюр,перерахування та оброблення готівки"},0,5.0000000000000001E-3,90000000,{"$f":"F16 + E16","v":5.0000000000000001E-3},{"$f":"G16*(F16-H16)","v":0},null,null,null,{"$f":"IF(D16=\"Error\", 0, VLOOKUP($D$2, __SETTINGS__!$A$2:$W$6, 20, FALSE))","v":200}]
[null,null,7,{"$f":"IF(VLOOKUP($D$2, __SETTINGS__!$A$2:$X$6, 12, FALSE) = 1, \"Оформлення заповідального розпорядження\", \"Error\")","v":"Оформлення заповідального розпорядження"},0,"200","ввести вартість \nпослуги",{"$f":"E10+F17","v":200},{"$f":"(F17-H17)","v":0},null,null,null,{"$f":"IF(D17=\"Error\", 0, VLOOKUP($D$2, __SETTINGS__!$A$2:$W$6, 21, FALSE))","v":780}]
[null,null,14,{"$f":"IF(VLOOKUP($D$2, __SETTINGS__!$A$2:$W$6, 12, FALSE) = 1, \"Надання приміщення для здійснення операції у присутності нотаріуса \", \"Error\")","v":"Надання приміщення для здійснення операції у присутності нотаріуса "},1E-3,500,"ввести вартість \nпослуги",{"$f":"E18+F18","v":500.00099999999998},{"$f":"(F18-H18)*B2","v":-9.9999999997635314E-4},null,null,null,{"$f":"IF(D18=\"Error\", 0, VLOOKUP($D$2, __SETTINGS__!$A$2:$W$6, 21, FALSE))","v":780}]
[null,null,8,"Отримання готівкових коштів(в Україні і за кордоном)",4.0000000000000001E-3,{"$f":"F6","v":1.2E-2},{"$f":"G6","v":9100000},{"$f":"F19 + E19","v":1.6E-2},{"$f":"G19*(F19 - H19) + G20*(F20 - H20)","v":-126399.99999999999},null,null,null,{"$f":"IF(D19=\"Error\", 0, VLOOKUP($D$2, __SETTINGS__!$A$2:$W$6, 21, FALSE))","v":780}]
[null,null,null,null,0.01,5.0000000000000001E-3,9000000,{"$f":"F20 + E20","v":1.4999999999999999E-2},null,null,null,null,{"$f":"IF(D20=\"Error\", 0, VLOOKUP($D$2, __SETTINGS__!$A$2:$W$6, 21, FALSE))","v":780}]
[null,null,8,{"$f":"\"Вклад у гривнях\n\"&IF(H21>0.145,\"Поповнення НЕ передбачено\",\"Поповнення передбачено\")","v":"Вклад у гривнях\nПоповнення передбачено"},-8.6736173798840355E-19,0.14499999999999999,0,{"$f":"F21 + E21","v":0.14499999999999999},{"$f":"G21*(H21 - F21)/365*180","v":0},null,null,null,{"$f":"IF(D21=\"Error\", 0, VLOOKUP($D$2, __SETTINGS__!$A$2:$W$6, 21, FALSE))","v":780}]
[null,null,9,{"$f":"\"Вклад у доларах США\n\"&IF(H22>0.015,\"Поповнення НЕ передбачено\",\"Поповнення передбачено\")","v":"Вклад у доларах США\nПоповнення передбачено"},-8.6736173798840355E-19,1.4999999999999999E-2,0,{"$f":"F22 + E22","v":1.4999999999999999E-2},{"$f":"G22*(H22-F22)/365*180*I28","v":0}]
[null,null,10,"Безготівкові перекази в інші банки за межами України USD/EUR/GBP/CHF/PLN",0,7.0000000000000001E-3,0,{"$f":"F23+E23","v":7.0000000000000001E-3},{"$f":"G23*(F23 - H23)","v":0}]
[null,null,11,"Купівля-продаж іноземної валюти за заявою клієнта",0,5.0000000000000001E-3,0,{"$f":"F24+E24","v":5.0000000000000001E-3},{"$f":"G24*(F24 - H24)","v":0}]
[null,null,12,"Безготівкові операції з конвертації іноземних валют",0,5.0000000000000001E-3,0,{"$f":"F25+E25","v":5.0000000000000001E-3},{"$f":"G25*(F25 - H25)","v":0}]
[null,null,13,{"$f":"\"Вклад у Євро\n\"&IF(H26>0.015,\"Поповнення НЕ передбачено\",\"Поповнення передбачено\")","v":"Вклад у Євро\nПоповнення передбачено"},-8.6736173798840355E-19,1.4999999999999999E-2,0,{"$f":"F26+E26","v":1.4999999999999999E-2},{"$f":"G26*(F26 - H26)","v":0}]
[null,null,null,null,null,null,null,"Економія/Витрати",{"$f":"SUM(I3,I4,I5,I9,I10,I12,I17,I21,I22,I23:I25)","v":0}]
[null,null,null,null,null,null,null,"Курс, долар США",42.28]

{"sheet":"__SETTINGS__","index":8,"n_rows":69,"n_cols":29,"rows_kept":69,"cut":false,"hidden":true,"merged":[]}
["тариф","базова вартість(грн)","Безготівкові перекази в частині списання з поточного рахунку в межах Банку на рахунки інших отримувачів  ","Безготівкові перекази в частині списання з поточного рахунку в інші банки по території України","Отримання готівкових коштів в банкоматах та відділеннях Банку/ банків України ","Отримання готівкових коштів в банкоматах та відділеннях за межами України","Безготівкове поповнення поточного рахунку у системі Банку/ зовнішнє","Оренда ІБС","Щомісячна плата за обслуговування карток в рамках Тарифного плану","Банківська довіреність ","Оформлення заповідального розпорядження","Перевірка справжності купюр,перерахування та оброблення готівки","Надання приміщення для здійснення операції у присутності нотаріуса","Безготівкові перекази в частині списання з поточного рахунку в межах Банку на рахунки інших отримувачів _деп","Оренда ІБС","Отримання готівкових коштів в Україні_тариф","Отримання готівкових коштів в банкоматах та відділеннях за межами України_тариф","Безготівкове поповнення поточного рахунку у системі Банку/ зовнішнє_тарифи","Щомісячна плата за обслуговування карток в рамках Тарифного плану_тарифи","Банківська довіреність _тариф","Оформлення заповідального розпорядження","Перевірка справжності купюр,перерахування та оброблення готівки_тариф","Надання приміщення для здійснення операції у присутності нотаріуса_тариф","Перерахування, сортування та оброблення готівки в національній валюті по замовленню клієнта","Перерахування, сортування та оброблення готівки в національній валюті по замовленню клієнта",null,null,null,"кількість_днів"]
["Перелік опцій",3000,1,1,1,1,1,1,1,1,0,1,0,5.0000000000000001E-3,500,1.2E-2,0.01,0.01,100,200,780,"0,2% + 30 грн",500,1,1,null,null,null,1]
["З відкриттям Преміальної картки в ТП «Безмеж» ",2000,1,1,1,1,1,1,1,1,1,1,1,5.0000000000000001E-3,500,1.2E-2,0.01,0.01,100,200,780,"0,2% + 30 грн",500,1,1,null,null,null,2]
["На діючу Преміальну картку ",1500,1,1,1,1,1,1,1,1,1,1,1,5.0000000000000001E-3,500,1.2E-2,0.01,0.01,100,200,780,"0,2% + 30 грн",500,1,1,null,null,null,3]
["В межах ТП «Престиж» ",3500,1,1,1,1,1,1,1,1,1,1,1,5.0000000000000001E-3,500,1.2E-2,0.01,0.01,100,200,780,"0,2% + 30 грн",500,1,1,null,null,null,4]
["В межах ТП «Стартовий» ",4000,1,1,1,1,1,1,1,1,1,1,1,5.0000000000000001E-3,500,1.2E-2,0.01,0.01,100,200,780,"0,2% + 30 грн",500,1,1,null,null,null,5]
[null,null,null,null,null,null,null,null,null,null,null,null,null,null,null,null,null,null,null,null,null,null,null,null,null,null,null,null,6]
[null,null,null,null,null,null,null,null,null,null,null,null,null,null,null,null,null,null,null,null,null,null,null,null,null,null,null,null,7]
[null,null,null,null,null,null,null,null,null,null,null,null,null,null,null,null,null,null,null,null,null,null,null,null,null,null,null,null,8]
[null,null,null,null,null,null,null,null,null,null,null,null,null,null,null,null,null,null,null,null,null,null,null,null,null,null,null,null,9]
[null,null,null,null,null,null,null,null,null,null,null,null,null,null,null,null,null,null,null,null,null,null,null,null,null,null,null,null,10]
[null,null,null,null,null,null,null,null,null,null,null,null,null,null,null,null,null,null,null,null,null,null,null,null,null,null,null,null,11]
[null,null,null,null,null,null,null,null,null,null,null,null,null,null,null,null,null,null,null,null,null,null,null,null,null,null,null,null,12]
[null,null,null,null,null,null,null,null,null,null,null,null,null,null,null,null,null,null,null,null,null,null,null,null,null,null,null,null,13]
[null,null,null,null,null,null,null,null,null,null,null,null,null,null,null,null,null,null,null,null,null,null,null,null,null,null,null,null,14]
[null,null,null,null,null,null,null,null,null,null,null,null,null,null,null,null,null,null,null,null,null,null,null,null,null,null,null,null,15]
[null,null,null,null,null,null,null,null,null,null,null,null,null,null,null,null,null,null,null,null,null,null,null,null,null,null,null,null,16]
[null,null,null,null,null,null,null,null,null,null,null,null,null,null,null,null,null,null,null,null,null,null,null,null,null,null,null,null,17]
[null,null,null,null,null,null,null,null,null,null,null,null,null,null,null,null,null,null,null,null,null,null,null,null,null,null,null,null,18]
[null,null,null,null,null,null,null,null,null,null,null,null,null,null,null,null,null,null,null,null,null,null,null,null,null,null,null,null,19]
[null,null,null,null,null,null,null,null,null,null,null,null,null,null,null,null,null,null,null,null,null,null,null,null,null,null,null,null,20]
[null,null,null,null,null,null,null,null,null,null,null,null,null,null,null,null,null,null,null,null,null,null,null,null,null,null,null,null,21]
[null,null,null,null,null,null,null,null,null,null,null,null,null,null,null,null,null,null,null,null,null,null,null,null,null,null,null,null,22]
[null,null,null,null,null,null,null,null,null,null,null,null,null,null,null,null,null,null,null,null,null,null,null,null,null,null,null,null,23]
[null,null,null,null,null,null,null,null,null,null,null,null,null,null,null,null,null,null,null,null,null,null,null,null,null,null,null,null,24]
[null,null,null,null,null,null,null,null,null,null,null,null,null,null,null,null,null,null,null,null,null,null,null,null,null,null,null,null,25]
[null,null,null,null,null,null,null,null,null,null,null,null,null,null,null,null,null,null,null,null,null,null,null,null,null,null,null,null,26]
[null,null,null,null,null,null,null,null,null,null,null,null,null,null,null,null,null,null,null,null,null,null,null,null,null,null,null,null,27]
[null,null,null,null,null,null,null,null,null,null,null,null,null,null,null,null,null,null,null,null,null,null,null,null,null,null,null,null,28]
[null,null,null,null,null,null,null,null,null,null,null,null,null,null,null,null,null,null,null,null,null,null,null,null,null,null,null,null,29]
[null,null,null,null,null,null,null,null,null,null,null,null,null,null,null,null,null,null,null,null,null,null,null,null,null,null,null,null,30]
[null,null,null,null,null,null,null,null,null,null,null,null,null,null,null,null,null,null,null,null,null,null,null,null,null,null,null,null,31]
[null,null,null,null,null,null,null,null,null,null,null,null,null,null,null,null,null,null,null,null,null,null,null,null,null,null,null,null,61]
[null,null,null,null,null,null,null,null,null,null,null,null,null,null,null,null,null,null,null,null,null,null,null,null,null,null,null,null,62]
[null,null,null,null,null,null,null,null,null,null,null,null,null,null,null,null,null,null,null,null,null,null,null,null,null,null,null,null,92]
[null,null,null,null,null,null,null,null,null,null,null,null,null,null,null,null,null,null,null,null,null,null,null,null,null,null,null,null,93]
[null,null,null,null,null,null,null,null,null,null,null,null,null,null,null,null,null,null,null,null,null,null,null,null,null,null,null,null,">93"]
[]
[]
[]
[]
[]
[]
[]
[]
[]
[]
[]
[]
[]
[]
[]
[]
[]
[]
[]
[]
[]
[]
[]
[]
[]
["Картка для власних потреб ","ТП «Безмеж» в Гривнях з оформленням основної преміальної картки",2000]
["Картка для виплат"," ТП «Еліт» в Гривнях з оформленням основної преміальної картки",3000]
["Картка моряка/ІТ","ТП «Безмеж» в Доларах США з оформленням основної преміальної картки",2000]
["Зарплатна картка","ТП «Еліт» в Доларах США з оформленням основної преміальної картки",3000]
["обрати тариф з переліку","ТП «Безмеж» в Євро з оформленням основної преміальної картки",2000]
[null,"ТП «Еліт» в Євро з оформленням основної преміальної картки",3000]
[null,"Оформлення основної преміальної картки обрати з переліку",0]